[Event "40th Cappelle Open 2024"]
[Site "Cappelle-la-Grande"]
[Date "2024.03.09"]
[Round "9.13"]
[White "Riff, Jean-Noel"]
[Black "Nikolov, Momchil"]
[Result "1/2-1/2"]
[ECO "C02"]
[WhiteElo "2401"]
[BlackElo "2453"]
[Annotator "TA"]
[PlyCount "39"]
[EventDate "2024.03.02"]
[EventType "swiss"]
[EventCountry "FRA"]
[SourceTitle "playchess.com"]
[Source "ChessBase"]
[SourceQuality "1"]
[TimeControl "40/5400+30:1800+30"]

{[%evp 16,39,19,23,34,27,28,30,33,34,22,31,27,25,37,0,38,22,25,25,25,25,25,0,42,35]} 1. e4 {[%emt 0:02:08]} c5 {[%emt 0:00:10]} 2. Nf3 {[%emt 0:00:10]} e6 {[%emt 0:00:08]} 3. c3 {[%emt 0:00:05]} d5 {[%emt 0:02:27]} 4. e5 {[%emt 0:00:12]} Nc6 {[%emt 0:02:52]} 5. d4 {[%emt 0:00:33]} cxd4 {[%emt 0:00:47]} 6. cxd4 {[%emt 0:00:23]} Nge7 {[%emt 0:00:07]} 7. Na3 {[%emt 0:03:34]} Nf5 {[%emt 0:01:50]} 8. Nc2 {[%emt 0:00:45]} Be7 {[%emt 0:03:20]} 9. Bd3 {[%emt 0:03:40]} Bd7 {[%emt 0:02:30]} 10. O-O {[%emt 0:02:38]} h5 {[%emt 0:06:13]} 11. a3 {[%emt 0:13:46]} Na5 {[%emt 0:03:27][%cal Bc6a5,Ba5b3,Bb3d2][%mdl 32] Weiß hat minimalen Vorteil.} 12. Bd2 {[%emt 0:07:51]} Nb3 {[%emt 0:03:45]} 13. Rb1 {[%emt 0:00:21]} Nxd2 {[%emt 0:04:07]} 14. Qxd2 {[%emt 0:02:03]} g6 {[%emt 0:01:14]} 15. Ne3 {[%emt 0:03:23]} Rc8 {[%emt 0:05:10]} 16. Rfc1 {[%emt 0:04:43]} Rxc1+ {[%emt 0:04:08]} 17. Rxc1 {[%emt 0:00:06]} Nxe3 {[%emt 0:01:32]} 18. Qxe3 {[%emt 0:01:26]} Qb6 {[%emt 0:05:14]} 19. h3 {[%emt 0:05:55]} Rf8 {[%emt 0:06:31]} 20. Rc2 {[%emt 0:06:52] Gewichteter Fehlerwert: Weiß=0.09 (makellos) /Schwarz=0.11 (sehr präzise) .  Ungenau:       	Weiß=1     	Schwarz=2     OK:         	Weiß=2     	---} 1/2-1/2

[Event "40th Cappelle Open 2024"]
[Site "Cappelle-la-Grande"]
[Date "2024.03.08"]
[Round "9.14"]
[White "Girel, Joseph"]
[Black "Defromont, Benjamin"]
[Result "1-0"]
[ECO "E94"]
[WhiteElo "2486"]
[BlackElo "2401"]
[Annotator "TA"]
[PlyCount "165"]
[EventDate "2024.03.02"]
[EventType "swiss"]
[EventCountry "FRA"]
[SourceTitle "playchess.com"]
[Source "ChessBase"]
[SourceQuality "1"]
[TimeControl "40/5400+30:1800+30"]

{[%evp 14,165,50,20,51,41,70,35,118,120,124,31,95,81,100,79,80,70,71,68,84,81,77,47,63,50,60,18,12,0,0,0,0,0,0,-22,13,9,10,17,13,0,0,0,112,0,0,0,0,0,0,0,0,0,0,0,0,0,0,0,87,87,87,87,87,87,254,87,87,80,102,102,102,87,102,84,102,102,102,102,102,102,102,102,102,102,102,102,133,102,102,102,102,102,102,102,102,102,102,102,102,102,102,102,102,102,102,102,102,0,102,102,102,102,102,102,102,102,102,92,92,85,79,79,203,187,226,225,181,188,234,218,271,241,256,291,56,56,29971,29975,29975,29970,29969,29972,29972,29973,29973,29973,29972,29974,29979,29980,29979,29981]} 1. d4 {[%emt 0:00:10]} Nf6 {[%emt 0:00:57]} 2. c4 {[%emt 0:00:23]} g6 {[%emt 0:00:52]} 3. Nc3 {[%emt 0:00:55]} Bg7 {[%emt 0:00:28]} 4. e4 {[%emt 0:00:15]} d6 {[%emt 0:00:21]} 5. Nf3 {[%emt 0:01:59]} O-O {[%emt 0:00:15]} 6. Be2 {[%emt 0:00:05]} Na6 {[%emt 0:01:11]} 7. O-O {[%emt 0:00:33]} e5 {[%emt 0:00:36]} 8. Re1 {[%emt 0:00:37]} h6 {[%emt 0:28:45]} 9. Bf1 {[%emt 0:15:53]} Bg4 {[%emt 0:05:24]} 10. dxe5 {[%emt 0:02:55]} Bxf3 {[%emt 0:01:21]} ({Besser ist} 10... dxe5 $14 11. Qxd8 Raxd8) 11. Qxf3 $16 {[%emt 0:00:50]} dxe5 {[%emt 0:00:16]} 12. Be3 {[%emt 0:02:27]} (12. Rd1 $16 Qb8 13. Be3) 12... Nd7 {[%emt 0:06:52]} (12... c6 $14) 13. Qh3 {[%emt 0:05:41][%cal Oa1d1] Weiß steht deutlich aktiver.} Ndc5 {[%emt 0:02:10]} 14. Bxh6 {[%emt 0:03:14]} Bxh6 {[%emt 0:06:08]} 15. Qxh6 {[%emt 0:00:05] Droht stark Re3.} c6 {[%emt 0:00:39]} 16. Rab1 {[%emt 0:04:34]} Ne6 {[%emt 0:01:48]} 17. b4 {[%emt 0:01:20]} Qf6 {[%emt 0:01:45]} 18. c5 {[%emt 0:01:29]} Nac7 {[%emt 0:00:16]} 19. Bc4 {[%emt 0:04:04]} Rfd8 {[%emt 0:00:35]} 20. Qe3 {[%emt 0:13:11]} Rd4 {[%emt 0:02:11]} 21. Bxe6 {[%emt 0:04:50]} Nxe6 {[%emt 0:01:03]} 22. Ne2 {[%emt 0:00:08]} Rd7 {[%emt 0:00:52]} 23. Rbd1 {[%emt 0:06:54]} Rad8 {[%emt 0:00:47]} 24. Qc1 {[%emt 0:01:59]} Nd4 {[%emt 0:05:29]} 25. Nxd4 {[%emt 0:01:29]} Rxd4 {[%emt 0:00:08]} 26. a3 {[%emt 0:02:05]} Qe6 {[%emt 0:06:32]} 27. Qc2 {[%emt 0:00:51]} Rxd1 {[%emt 0:06:57]} 28. Rxd1 {[%emt 0:00:30]} Rxd1+ {[%emt 0:00:10]} 29. Qxd1 $11 {[%emt 0:00:02][%mdl 4096] Endspiel. KQ-KQ} Qc4 {[%emt 0:00:23]} 30. Qe1 {[%emt 0:06:26]} Qd3 {[%emt 0:02:33]} 31. a4 {[%emt 0:00:33]} a5 $1 {[%emt 0:00:23]} 32. bxa5 {[%emt 0:03:19]} Qc2 {[%emt 0:00:26]} 33. h3 {[%emt 0:03:03]} Qxc5 {[%emt 0:00:39]} 34. Qb1 {[%emt 0:00:13]} Kg7 {[%emt 0:01:07]} 35. Qb6 {[%emt 0:02:52]} (35. Qxb7 $5 Qc1+ $8 36. Kh2 Qf4+ 37. Kh1 Qc1+ 38. Kh2 Qf4+ 39. Kh1 Qc1+ 40. Kh2 $11) 35... Qc4 {[%emt 0:01:25]} 36. g3 {[%emt 0:01:22]} Qxa4 {[%emt 0:09:02]} (36... Qxe4 $11 {bleibt in der Remisbreite.} 37. Qxb7 Qe1+ 38. Kg2 Qe4+ 39. Kh2 Qd4) 37. Qxb7 $16 {[%emt 0:00:15]} Qxa5 {[%emt 0:00:56] Und jetzt ...Qe1+ wäre schön.} 38. Qxc6 {[%emt 0:00:08]} Qd8 {[%emt 0:02:04]} 39. Kg2 {[%emt 0:01:07]} Qg5 $2 {[%emt 0:01:12]} (39... Qe7 $16) 40. Qd5 $2 {[%emt 0:00:55]} (40. Qd6 $18 {ist der präzise Gewinnweg.}) 40... Qe7 {[%emt 0:00:27]} 41. h4 {[%emt 0:31:53]} Qf6 {[%emt 0:07:45]} 42. Qc5 {[%emt 0:00:00]} Qe6 {[%emt 0:00:47]} 43. Qc3 {[%emt 0:00:00]} Kh7 {[%emt 0:02:08]} 44. Qf3 {[%emt 0:00:00]} Kh6 {[%emt 0:00:30]} 45. Qe3+ {[%emt 0:00:00]} Kg7 {[%emt 0:00:54]} 46. Qg5 {[%emt 0:00:00]} f6 {[%emt 0:00:13]} 47. Qd2 {[%emt 0:00:00]} Qg4 {[%emt 0:02:33]} 48. Qb4 {[%emt 0:00:00]} Qd7 {[%emt 0:00:32] Wehrt Qe7+ ab} 49. Qc5 {[%emt 0:00:00]} Qe6 {[%emt 0:01:18]} 50. Qc7+ {[%emt 0:00:00]} Kh6 {[%emt 0:01:29]} 51. Qb8 {[%emt 0:00:00]} Kg7 {[%emt 0:00:14] Pariert Qh8+.} 52. Qb7+ {[%emt 0:00:00]} Kh8 {[%emt 0:00:27]} 53. Qd5 {[%emt 0:00:00]} Qe7 {[%emt 0:00:50]} 54. Qd1 {[%emt 0:00:00]} Qf7 {[%emt 0:00:47]} 55. Kh3 {[%emt 0:00:46]} Kh7 {[%emt 0:01:31]} 56. Qd6 {[%emt 0:00:43]} Kg7 {[%emt 0:00:32]} 57. Kg2 {[%emt 0:02:35]} Qb7 {[%emt 0:01:21]} 58. Qd5 {[%emt 0:00:11]} Qe7 {[%emt 0:00:17]} 59. Kf3 {[%emt 0:04:14]} Qa3+ {[%emt 0:02:49]} 60. Kg4 {[%emt 0:00:16]} Qa7 {[%emt 0:00:02]} 61. Kf3 {[%emt 0:01:31]} Qa3+ $1 {[%emt 0:00:09]} 62. Ke2 $1 {[%emt 0:00:08]} Qa6+ {[%emt 0:00:31]} 63. Qd3 {[%emt 0:00:36]} Qa2+ {[%emt 0:00:56]} 64. Kf1 {[%emt 0:00:16]} Qe6 {[%emt 0:00:06]} 65. Qf3 {[%emt 0:00:35]} Qf7 {[%emt 0:00:56]} 66. g4 {[%emt 0:00:18]} Qe6 {[%emt 0:00:58]} 67. Kg2 {[%emt 0:00:15]} Qc8 {[%emt 0:03:32]} 68. h5 {[%emt 0:04:11] Droht Matt per hxg6.} Qc1 {[%emt 0:00:53]} (68... Qd8 $16) 69. hxg6 $1 $18 {[%emt 0:00:18]} Kxg6 {[%emt 0:00:12]} 70. Qf5+ {[%emt 0:00:13]} Kg7 {[%emt 0:00:17] [#]} 71. g5 $1 {[%emt 0:01:23][%mdl 512]} fxg5 {[%emt 0:00:46]} ({Schwächer ist} 71... Qxg5+ 72. Qxg5+ fxg5 73. Kf3 Kh7 74. Kg4 Kg6 75. f3 Kf6 76. Kh5) 72. Qxe5+ {[%emt 0:00:07]} Kg6 {[%emt 0:00:36] [#]} 73. Qf5+ $1 {[%emt 0:01:22]} Kh6 {[%emt 0:01:07] [#]} 74. Qf6+ $1 {[%emt 0:00:56]} Kh7 {[%emt 0:03:14]} 75. e5 {[%emt 0:00:42][%cal Be4e5,Be5e6][%mdl 32] Droht Qe7+ und aus.} Kg8 $2 {[%emt 0:01:14][%mdl 8192]} (75... Qd2 $14 76. Qf5+ Kh6) 76. e6 {[%emt 0:02:00] Weiß setzt Matt.} Qc6+ {[%emt 0:00:09]} 77. Kg3 {[%emt 0:00:20]} Qd6+ {[%emt 0:01:48]} 78. Kg4 {[%emt 0:01:29]} Qd1+ {[%emt 0:00:41]} 79. Qf3 {[%emt 0:02:01]} Qd4+ {[%emt 0:01:29]} 80. Kxg5 {[%emt 0:00:36]} Qg7+ {[%emt 0:04:47]} 81. Kh4 {[%emt 0:00:14]} Qh6+ {[%emt 0:03:11]} 82. Qh5 {[%emt 0:00:46]} Qxe6 {[%emt 0:01:03]} 83. Qg4+ {[%emt 0:00:08] Gewichteter Fehlerwert: Weiß=0.13 (sehr präzise) /Schwarz=0.15 (sehr präzise) .  Verlustzug:     	---       	Schwarz=2     Gewinn verpasst:   	Weiß=1     	---        Fehler:       	Weiß=1     	Schwarz=4     Ungenau:       	Weiß=4     	Schwarz=3     OK:         	Weiß=18    	Schwarz=24    Bester:       	Weiß=5     	Schwarz=7     Stark:        	Weiß=4     	Schwarz=2     Brilliant:      	Weiß=1     	---} 1-0

[Event "40th Cappelle Open 2024"]
[Site "Cappelle-la-Grande"]
[Date "2024.03.08"]
[Round "9.15"]
[White "Bourquin, Pascal"]
[Black "Roshka, Yevgeniy"]
[Result "0-1"]
[ECO "A28"]
[WhiteElo "2243"]
[BlackElo "2468"]
[Annotator "TA"]
[PlyCount "49"]
[EventDate "2024.03.02"]
[EventType "swiss"]
[EventCountry "FRA"]
[SourceTitle "playchess.com"]
[Source "ChessBase"]
[SourceQuality "1"]
[TimeControl "40/5400+30:1800+30"]

{[%evp 9,49,0,0,0,-6,-16,6,0,0,0,0,0,8,6,11,-9,-12,-17,-12,-18,-4,-50,-16,-19,-14,-36,-28,-37,-36,-181,-176,-164,-181,-280,-275,-330,-347,-414,-378,-420,-403,-664]} 1. c4 {[%emt 0:00:02]} e5 {[%emt 0:00:31]} 2. Nc3 {[%emt 0:00:12]} Nc6 {[%emt 0:00:39]} 3. d3 {[%emt 0:02:25]} Bb4 {[%emt 0:02:29]} 4. Bd2 {[%emt 0:00:40]} Nf6 {[%emt 0:00:14]} 5. Nf3 {[%emt 0:02:10]} O-O {[%emt 0:00:13]} 6. a3 {[%emt 0:03:08]} Bxc3 {[%emt 0:00:45]} 7. Bxc3 {[%emt 0:00:07]} Re8 {[%emt 0:00:30]} (7... e4 {hält die Spannung aufrecht.} 8. Nd4 exd3 9. e3 Ne4) 8. e3 {[%emt 0:04:49] Die Stellung ist ausgeglichen.} d5 {[%emt 0:02:16]} 9. cxd5 {[%emt 0:00:07]} Nxd5 {[%emt 0:00:04]} 10. Be2 {[%emt 0:02:49]} Bg4 {[%emt 0:11:03]} 11. O-O {[%emt 0:01:05]} Qd6 {[%emt 0:00:25]} 12. d4 {[%emt 0:09:34]} e4 {[%emt 0:14:17][%cal Od5c3] [#] Droht stark ...Nxc3!} 13. Nd2 {[%emt 0:00:40]} Bxe2 {[%emt 0:00:05]} 14. Qxe2 {[%emt 0:00:04]} Qg6 {[%emt 0:13:21]} 15. Rfc1 {[%emt 0:08:43]} (15. f3 $11 {verdient Beachtung.}) 15... Rad8 {[%emt 0:07:23]} 16. b4 {[%emt 0:02:21]} Nce7 {[%emt 0:01:56]} 17. Nf1 {[%emt 0:04:04]} h5 {[%emt 0:04:53] Weiss ist schwach auf den weissen Feldern} 18. Bd2 {[%emt 0:03:01]} Rd6 $40 {[%emt 0:04:49][%mdl 128] Schwarz startet einen Angriff.} 19. f4 {[%emt 0:02:50] Davon erholt Weiß sich nicht mehr.} (19. a4 $15) 19... exf3 $19 {[%emt 0:00:38]} 20. Qxf3 {[%emt 0:00:06]} Rf6 {[%emt 0:00:27] Pariert e4.} 21. Qh3 {[%emt 0:01:37]} (21. Qe2 $142) 21... Nf5 {[%emt 0:00:58] Und ...Re4 würde nun gewinnen. Hervorragende Reitkunst.} 22. Rc5 {[%emt 0:01:06]} c6 {[%emt 0:00:04]} 23. b5 {[%emt 0:00:17]} Re4 {[%emt 0:00:06] [#] Droht ...Rh4 und aus.} 24. bxc6 {[%emt 0:02:48]} bxc6 {[%emt 0:00:04] ...Rh4 wäre nun fies.} 25. Ng3 {[%emt 0:09:33] Gewichteter Fehlerwert: Weiß=0.38/Schwarz=0.05 (makellos) .  Fehler:       	Weiß=4     	---        Ungenau:       	---       	Schwarz=1     OK:         	Weiß=3     	Schwarz=7     Bester:       	Weiß=1     	Schwarz=2} (25. Re1 $142) 0-1

[Event "40th Cappelle Open 2024"]
[Site "Cappelle-la-Grande"]
[Date "2024.03.08"]
[Round "9.16"]
[White "Wirig, Anthony"]
[Black "Bauduin, Etienne"]
[Result "1-0"]
[ECO "D37"]
[WhiteElo "2462"]
[BlackElo "2191"]
[Annotator "TA"]
[PlyCount "81"]
[EventDate "2024.03.02"]
[EventType "swiss"]
[EventCountry "FRA"]
[SourceTitle "playchess.com"]
[Source "ChessBase"]
[SourceQuality "1"]
[TimeControl "40/5400+30:1800+30"]

{[%evp 9,81,17,24,0,39,14,15,24,75,23,91,76,93,87,104,87,115,101,112,109,107,112,110,107,103,75,84,71,85,39,56,53,90,108,93,62,66,61,56,47,46,31,46,47,77,73,57,64,70,44,45,44,62,0,49,51,116,111,109,116,207,75,80,54,357,357,474,420,480,479,476,386,389,387]} 1. d4 {[%emt 0:07:16]} Nf6 {[%emt 0:00:15]} 2. Nf3 {[%emt 0:02:10]} e6 {[%emt 0:01:05]} 3. c4 {[%emt 0:02:00]} d5 {[%emt 0:00:13]} 4. Nc3 {[%emt 0:00:17]} h6 {[%emt 0:00:52]} 5. e3 {[%emt 0:04:40]} Bd6 {[%emt 0:06:42]} 6. Qc2 {[%emt 0:05:36]} Nbd7 {[%emt 0:09:25]} 7. cxd5 {[%emt 0:07:11]} exd5 {[%emt 0:00:23]} 8. Nb5 {[%emt 0:00:30] The position is equal.} Ne4 {[%emt 0:06:46]} (8... Bb4+ $11 9. Bd2 Bxd2+ 10. Nxd2 c6 11. Nd6+ Ke7 12. Nxc8+ Rxc8) 9. Nd2 {[%emt 0:10:38]} ({Better is} 9. Nxd6+ $16 Nxd6 10. Bd3) 9... f5 {[%emt 0:07:41]} (9... Ndf6 $11 {remains equal.}) 10. Bd3 $16 {[%emt 0:10:12]} Nb6 {[%emt 0:20:25]} 11. Nxd6+ {[%emt 0:02:18]} cxd6 {[%emt 0:06:59]} 12. O-O {[%emt 0:00:32]} O-O {[%emt 0:01:59]} 13. f3 {[%emt 0:01:05]} Ng5 {[%emt 0:04:29]} 14. Nb1 {[%emt 0:03:03]} f4 {[%emt 0:09:50]} 15. Nc3 {[%emt 0:03:26]} Ne6 {[%emt 0:00:48]} 16. Qf2 {[%emt 0:12:21]} (16. a4 {looks sharper.} fxe3 17. a5 Nxd4 18. Qd1) 16... Bd7 {[%emt 0:03:53]} 17. exf4 {[%emt 0:04:10]} Nxf4 {[%emt 0:00:20]} 18. Bxf4 {[%emt 0:00:07]} Rxf4 {[%emt 0:00:07]} 19. Ne2 {[%emt 0:05:27]} (19. a4 $16) 19... Rf8 $14 {[%emt 0:00:22]} 20. b3 {[%emt 0:01:42]} (20. Rfe1 {is more complex.} Qg5 21. Nc3 Rae8 22. b3) 20... Bf5 {[%emt 0:00:54]} 21. Bxf5 {[%emt 0:01:08]} Rxf5 {[%emt 0:01:46]} 22. Rac1 {[%emt 0:00:16]} Rf7 {[%emt 0:00:22]} 23. Rc3 {[%emt 0:00:09]} Nd7 {[%emt 0:01:56]} 24. Qe3 {[%emt 0:02:17]} Qf6 {[%emt 0:00:42]} 25. Rc7 {[%emt 0:01:53]} Re7 {[%emt 0:00:32]} 26. Qd2 {[%emt 0:00:04]} Rae8 {[%emt 0:00:16]} 27. Nc3 $36 {[%emt 0:00:31][%mdl 2048] Black is under strong pressure. White is more active.} (27. Rxb7 $2 {is the wrong capture.} Rxe2 28. Qd3 Qg5 $19) 27... Nb6 {[%emt 0:00:39]} 28. Rxe7 {[%emt 0:00:45]} Qxe7 {[%emt 0:00:24]} 29. Rc1 {[%emt 0:01:12]} a6 {[%emt 0:01:13]} 30. Kf1 {[%emt 0:04:09]} Qh4 {[%emt 0:00:37]} 31. Kg1 {[%emt 0:01:05]} Qe7 {[%emt 0:00:32]} 32. g3 {[%emt 0:00:16]} Qe3+ {[%emt 0:03:57]} (32... Nd7 $14) 33. Qxe3 $16 {[%emt 0:00:05]} Rxe3 {[%emt 0:00:06][%mdl 4096] Endgame. KRN-KRN} 34. Kf2 {[%emt 0:00:06]} Rd3 {[%emt 0:00:05]} (34... Re8 $16) 35. Ke2 {[%emt 0:02:23]} (35. Rc2 $18 {is more deadly.}) 35... Rxd4 {[%emt 0:00:10]} 36. a3 {[%emt 0:00:02] [#] aiming for Ke3.} Nc4 {[%emt 0:02:31][%mdl 8192] Loses the game.} 37. bxc4 $18 {[%emt 0:00:13]} dxc4 {[%emt 0:00:04]} 38. Rd1 {[%emt 0:00:46] Dodges Rd3} Rxd1 {[%emt 0:00:11]} 39. Nxd1 {[%emt 0:00:06]} ({Much less strong is} 39. Kxd1 Kf7 40. Kd2 Ke6 $18) 39... Kf7 {[%emt 0:00:32]} 40. Ke3 {[%emt 0:00:04]} Ke6 {[%emt 0:00:17]} 41. Ke4 {[%emt 0:38:49] Weighted Error Value: White=0.15 (very precise) /Black=0.39.  Loses game:     	---       	Black=1      Mistake:       	White=3     	Black=4      Inaccurate:     	White=3     	Black=5      OK:         	White=15    	Black=8      Best:        	White=2     	Black=3} 1-0

[Event "40th Cappelle Open 2024"]
[Site "Cappelle-la-Grande"]
[Date "2024.03.08"]
[Round "9.17"]
[White "Lesueur, Gabriel"]
[Black "Firat, Burak"]
[Result "0-1"]
[ECO "D00"]
[WhiteElo "2207"]
[BlackElo "2439"]
[Annotator "TA"]
[PlyCount "92"]
[EventDate "2024.03.02"]
[EventType "swiss"]
[EventCountry "FRA"]
[SourceTitle "playchess.com"]
[Source "ChessBase"]
[SourceQuality "1"]
[TimeControl "40/5400+30:1800+30"]

{[%evp 9,91,0,0,0,17,9,7,0,4,0,2,7,0,-75,-75,-75,-45,-64,-61,-145,-131,-162,-123,-321,-327,-309,-202,-188,-186,-194,-173,-169,-164,-179,-165,-329,-77,-102,-108,-202,-135,-143,-144,-139,-128,-132,-141,-250,-248,-238,-230,-233,-230,-544,-540,-744,-736,-5431,-5431,-29987,-29988,-29988,-29989,-29995,-29996,-29996,-29997,-29997,-29986,-29986,-29987,-29987,-29978,-29976,0,-29987,0,-52,0,-29997,-29998,-29998,-29999,-29999]} 1. d4 {[%emt 0:00:04]} Nf6 {[%emt 0:00:27]} 2. Nc3 {[%emt 0:00:05]} d5 {[%emt 0:00:54]} 3. Bf4 {[%emt 0:00:05]} a6 {[%emt 0:03:18]} 4. e3 {[%emt 0:00:30]} e6 {[%emt 0:01:04]} 5. g4 {[%emt 0:00:06]} Bb4 {[%emt 0:03:04]} 6. Nge2 {[%emt 0:00:22]} Ne4 {[%emt 0:02:54][%cal Oe6e5] Threatens to win with ...e5!} 7. Bg2 {[%emt 0:00:58]} Nxc3 {[%emt 0:01:02]} 8. Nxc3 {[%emt 0:01:02] The position is equal.} Nd7 {[%emt 0:03:19]} 9. Qd3 {[%emt 0:07:05]} O-O {[%emt 0:06:22]} 10. O-O-O {[%emt 0:16:56]} c5 {[%emt 0:13:45]} 11. e4 {[%emt 0:09:46]} (11. dxc5 $11 Qa5 12. a3 Nxc5 13. Qd4 Bxc3 14. Qxc3 Qxc3 15. bxc3) 11... cxd4 $17 {[%emt 0:08:47]} 12. Qxd4 {[%emt 0:00:26]} Bc5 {[%emt 0:00:10]} 13. Qd2 {[%emt 0:00:23]} d4 {[%emt 0:00:56][%cal Oe6e5] [#] Hoping for ...e5!} 14. Ne2 {[%emt 0:01:58]} ({White must play} 14. Na4 $15 Ba7 15. b3) 14... e5 {[%emt 0:03:37]} 15. Bg3 {[%emt 0:00:03]} Nb6 $36 {[%emt 0:03:48][%mdl 2048] aiming for ...Nc4. Black is in control.} 16. Bxe5 $2 {[%emt 0:13:40]} (16. Qd3 $17 {was the only chance.} Re8 (16... Bxg4 17. Bxe5 Re8 18. f3 $17) 17. f4) 16... Nc4 $1 $19 {[%emt 0:08:37]} (16... Bxg4 17. Qd3 $15) 17. Qf4 {[%emt 0:00:21][%cal Re5d4]} Qb6 {[%emt 0:00:34][%csl Gc4][%cal Rb6b2]} 18. b3 {[%emt 0:02:05]} Nxe5 {[%emt 0:11:30]} 19. Qxe5 {[%emt 0:00:38]} Bxg4 {[%emt 0:00:09]} 20. f3 {[%emt 0:05:16]} Rfe8 {[%emt 0:07:10]} 21. Qg3 {[%emt 0:14:24]} Be6 {[%emt 0:00:15] Strongly threatening ...a5. A strong pair of Bishops.} 22. Bh3 $2 {[%emt 0:01:37]} (22. f4) 22... Rac8 $2 {[%emt 0:05:13]} (22... d3 $19 {and Black stays clearly on top.} 23. Rxd3 Bc4 24. bxc4 Be3+ 25. Rxe3 Qxe3+ 26. Kb2 (26. Kd1 $2 Red8+ 27. Ke1 Rd2 $19) 26... Qxe2) 23. Kb1 {[%emt 0:04:55]} Bd6 {[%emt 0:05:19]} 24. f4 {[%emt 0:04:53]} (24. Qg2 $17) 24... Qc5 {[%emt 0:01:50]} 25. Nxd4 {[%emt 0:01:57]} Bxh3 {[%emt 0:00:09]} 26. e5 {[%emt 0:07:09] [#]} Bxe5 $1 {[%emt 0:03:17]} 27. fxe5 {[%emt 0:00:19]} Bf5 {[%emt 0:00:06][%cal Rf5c2]} 28. Rhg1 {[%emt 0:04:39]} (28. Rd2 $17 {was necessary.} Be4 (28... Qxe5 29. Nxf5 Qxf5 30. Qg2 $19) 29. Re1 Rxe5 (29... Qxe5 $2 30. Kb2 $19) 30. Kb2) 28... Bxc2+ {[%emt 0:01:08]} 29. Kb2 {[%emt 0:01:01][%csl Gg1][%cal Rg3g7]} Bg6 {[%emt 0:00:04]} 30. Rge1 {[%emt 0:01:56]} Rcd8 {[%emt 0:01:03]} 31. Qh4 {[%emt 0:00:34]} (31. Qc3 {is a better chance.} Qxc3+ (31... Rxe5 $2 32. Qxc5 Rxc5 33. Nf5 $19) 32. Kxc3) 31... Rd5 {[%emt 0:00:42]} 32. e6 {[%emt 0:00:32]} fxe6 {[%emt 0:00:34]} 33. Rxe6 {[%emt 0:00:43]} Rxe6 {[%emt 0:02:59]} 34. Nxe6 {[%emt 0:00:01]} Qc2+ {[%emt 0:00:02]} 35. Ka3 {[%emt 0:00:13]} Qxd1 {[%emt 0:00:26]} 36. Qe7 {[%emt 0:00:14]} Ra5+ {[%emt 0:00:29]} 37. Kb4 {[%emt 0:00:01]} Qd2+ {[%emt 0:00:25]} (37... Rxa2 38. Qxg7#) 38. Kc4 {[%emt 0:00:08]} Qd3+ {[%emt 0:01:07]} 39. Kb4 {[%emt 0:00:08]} Qb5+ {[%emt 0:00:23]} (39... Rxa2 40. Qxg7#) 40. Kc3 {[%emt 0:00:04]} Qc6+ {[%emt 0:00:11]} (40... Rxa2 41. Qxg7#) 41. Kb4 {[%emt 0:31:03]} Qb5+ {[%emt 0:30:14]} (41... Rxa2 42. Qxg7#) 42. Kc3 {[%emt 0:00:12][%csl Ge6][%cal Re7g7]} Qd3+ $2 {[%emt 0:00:03]} (42... Rxa2 43. Qxg7#) (42... Qe5+ {mates} 43. Nd4 Qxe7 44. a4 Qe1+ (44... Qc5+ 45. Kb2 Qxd4+ 46. Ka2 Qd2+ 47. Ka3 b5 48. b4 Rxa4+ 49. Kb3 Qxb4#) 45. Kb2 Rc5 46. Ka2 a5 (46... Qb1+ 47. Ka3 a5 48. Nc2 Qc1+ 49. Ka2 Rxc2#) 47. h3 Qb1+ 48. Ka3 Qa1#) 43. Kb4 $15 {[%emt 0:00:14][%csl Ge6][%cal Re7g7]} Qd2+ {[%emt 0:00:01]} ({Weaker is} 43... Rxa2 44. Qxg7#) (43... Ra4+ $5 44. bxa4 a5+ 45. Kxa5 Qa6+ 46. Kb4 Qb6+ 47. Kc4 Qc6+ 48. Kb4 Qb6+ 49. Ka3 Qe3+ 50. Kb4 Qd2+ 51. Kb5 Qb2+ (51... Qxa2 52. Qxg7#) 52. Ka5 Qc3+ (52... Qxa2 53. Qxg7#) 53. Kb6 Qc6+ 54. Ka5 Qc3+ 55. Kb6 Qc6+ 56. Ka5 Qa6+ 57. Kb4 Qb6+ $11) 44. Kc4 {[%emt 0:00:08][%csl Ge6][%cal Re7g7]} Bd3+ {[%emt 0:00:12] Black mates.} 45. Kd4 {[%emt 0:00:05]} Bf1+ {[%emt 0:00:09]} 46. Ke4 {[%emt 0:00:24]} Bg2# {[%emt 0:05:42] Weighted Error Value: White=0.83/Black=0.13 (very precise) .  Loses game:     	White=2     	---        Missed win:     	---       	Black=1      Mistake:       	White=6     	---        Inaccurate:     	White=2     	Black=2      OK:         	White=8     	Black=16     Best:        	White=2     	Black=4      Strong:       	---       	Black=1} 0-1